fUST/lending_fUST_20250528
["ID","MTS","AMOUNT","RATE_DAILY","PERIOD"]
[362690111,1748398250214,-441.59548481,0.00019726,2]
[362690113,1748398250223,-453.13815954,0.00019726,2]
[362690115,1748398250232,-471.60275399,0.00019726,2]
[362690117,1748398250241,-466.39779055,0.00019726,2]
[362690119,1748398250251,-350.07224278,0.00019726,2]
[362690121,1748398250260,-438.27894563,0.00019726,2]
[362690123,1748398250270,-440.84510904,0.00019726,2]
[362690125,1748398250279,-452.09207936,0.00019726,2]
[362690127,1748398250289,-450.60011431,0.00019726,2]
[362690129,1748398250298,-1886.1,0.00019726,2]
[362690131,1748398250308,-447.90357451,0.00019726,2]
[362690133,1748398250318,-460.27917472,0.00019726,2]
[362690135,1748398250327,-479.34938273,0.00019726,2]
[362690137,1748398250337,-442.76128627,0.00019726,2]
[362690139,1748398250346,-450.76548431,0.00019726,2]
[362690141,1748398250355,-449.59139747,0.00019726,2]
[362690143,1748398250364,-430.0,0.00019726,2]
[362690145,1748398250373,-447.18095242,0.00019726,2]
[362690147,1748398250383,-445.38113443,0.00019726,2]
[362690149,1748398250392,-465.49569029,0.00019726,2]
[362690151,1748398250401,-2355.4,0.00019726,2]
[362690153,1748398250411,-461.53158015,0.00019726,2]
[362690155,1748398250420,-430.0,0.00019726,2]
[362690157,1748398250429,-430.0,0.00019726,2]
[362690159,1748398250438,-430.0,0.00019726,2]
[362690161,1748398250448,-446.98836196,0.00019726,2]
[362690163,1748398250457,-444.56856341,0.00019726,2]
[362690165,1748398250466,-441.9328491,0.00019726,2]
[362690167,1748398250476,-444.57269517,0.00019726,2]
[362690169,1748398250485,-430.0,0.00019726,2]
[362690171,1748398250494,-437.28935855,0.00019726,2]
[362690173,1748398250503,-430.0,0.00019726,2]
[362690175,1748398250513,-449.37270301,0.00019726,2]
[362690177,1748398250523,-485.80838354,0.00019726,2]
[362690179,1748398250533,-449.51,0.00019726,2]
[362690181,1748398250542,-437.523424,0.00019726,2]
[362690183,1748398250551,-444.18356736,0.00019726,2]
[362690185,1748398250562,-447.60452934,0.00019726,2]
[362690187,1748398250573,-455.4384676,0.00019726,2]
[362690189,1748398250582,-441.26893918,0.00019726,2]
[362690191,1748398250592,-443.90586911,0.00019726,2]
[362690193,1748398250602,-430.0,0.00019726,2]
[362690195,1748398250612,-507.30791135,0.00019726,2]
[362690199,1748398250645,-442.63788385,0.00019726,2]
[362690201,1748398250654,-454.65803342,0.00019726,2]
[362690203,1748398250664,-430.0,0.00019726,2]
[362690205,1748398250673,-463.53095268,0.00019726,2]
[362690207,1748398250682,-442.11198438,0.00019726,2]
[362690209,1748398250692,-430.0,0.00019726,2]
[362690211,1748398250701,-473.70841793,0.00019726,2]
[362690213,1748398250711,-443.28900231,0.00019726,2]
[362690215,1748398250720,-430.0,0.00019726,2]
[362690217,1748398250729,-446.50092492,0.00019726,2]
[362690219,1748398250738,-430.0,0.00019726,2]
[362690221,1748398250747,-438.53618931,0.00019726,2]
[362690223,1748398250756,-430.0,0.00019726,2]
[362690225,1748398250765,-430.0,0.00019726,2]
[362690227,1748398250774,-430.0,0.00019726,2]
[362690229,1748398250784,-430.0,0.00019726,2]
[362690231,1748398250794,-430.0,0.00019726,2]
[362690233,1748398250803,-435.26159721,0.00019726,2]
[362690235,1748398250813,-430.0,0.00019726,2]
[362690237,1748398250823,-433.52586332,0.00019726,2]
[362690239,1748398250834,-470.13388989,0.00019726,2]
[362690241,1748398250844,-430.0,0.00019726,2]
[362690243,1748398250854,-430.0,0.00019726,2]
[362690245,1748398250863,-449.94085656,0.00019726,2]
[362690247,1748398250876,-430.0,0.00019726,2]
[362690249,1748398250886,-451.19679556,0.00019726,2]
[362690251,1748398250895,-450.47762885,0.00019726,2]
[362690253,1748398250904,-430.0,0.00019726,2]
[362690255,1748398250915,-439.2265674,0.00019726,2]
[362690257,1748398250924,-430.0,0.00019726,2]
[362690259,1748398250933,-469.26228414,0.00019726,2]
[362690261,1748398250943,-430.0,0.00019726,2]
[362690263,1748398250952,-471.81921093,0.00019726,2]
[362690265,1748398250962,-430.0,0.00019726,2]
[362690267,1748398250971,-430.0,0.00019726,2]
[362690269,1748398250980,-473.74696991,0.00019726,2]
[362690272,1748398250990,-430.0,0.00019726,2]
[362690274,1748398250999,-443.99709478,0.00019726,2]
[362690276,1748398251009,-430.0,0.00019726,2]
[362690278,1748398251019,-855.4,0.00019726,2]
[362690280,1748398251029,-430.0,0.00019726,2]
[362690282,1748398251038,-430.0,0.00019726,2]
[362690284,1748398251047,-430.0,0.00019726,2]
[362690286,1748398251056,-430.0,0.00019726,2]
[362690288,1748398251066,-430.0,0.00019726,2]
[362690290,1748398251077,-430.0,0.00019853,2]
[362690291,1748398251091,-430.0,0.00019853,2]
[362690293,1748398251104,-430.0,0.00019853,2]
[362690295,1748398251113,-430.0,0.00019853,2]
[362690297,1748398251123,-439.69404227,0.00019853,2]
[362690299,1748398251132,-1259.42,0.00019853,2]
[362690301,1748398251141,-378.22004639,0.000199,2]
[362690303,1748398251151,-300.79657783,0.0001991,2]
[362690305,1748398251160,-366.10549734,0.0002,2]
[362690308,1748398251170,-372.07,0.0002,2]
[362690310,1748398251180,-430.0,0.0002,2]
[362690312,1748398251189,-279.34236694,0.0002,3]
[362690314,1748398251199,-430.0,0.0002,2]
[362690316,1748398251208,-1886.1,0.0002,2]
[362690318,1748398251217,-430.0,0.0002,2]
[362690320,1748398251226,-2355.4,0.0002,2]
[362690322,1748398251236,-436.26830118,0.0002,2]
[362690324,1748398251245,-449.6495247,0.0002,2]
[362690325,1748398251254,-436.02791273,0.0002,2]
[362690328,1748398251264,-430.0,0.0002,2]
[362690330,1748398251273,-449.40018422,0.0002,2]
[362690332,1748398251283,-449.51,0.0002,2]
[362690334,1748398251292,-457.93581306,0.0002,2]
[362690336,1748398251302,-493.4754309,0.0002,2]
[362690338,1748398251311,-439.19295819,0.0002,2]
[362690340,1748398251321,-440.57645738,0.0002,2]
[362690342,1748398251330,-430.0,0.0002,2]
[362690344,1748398251340,-444.16974642,0.0002,2]
[362690346,1748398251349,-430.0,0.0002,2]
[362690347,1748398251359,-452.94564285,0.0002,2]
[362690349,1748398251368,-456.66462711,0.0002,2]
[362690351,1748398251378,-430.0,0.0002,2]
[362690354,1748398251388,-430.0,0.0002,2]
[362690356,1748398251397,-516.7764518,0.0002,2]
[362690358,1748398251406,-438.38865541,0.0002,2]
[362690359,1748398251416,-430.0,0.0002,2]
[362690362,1748398251426,-438.66906455,0.0002,2]
[362690363,1748398251435,-435.02829609,0.0002,2]
[362690365,1748398251445,-462.56061009,0.0002,2]
[362690368,1748398251455,-455.8974925,0.0002,2]
[362690370,1748398251464,-469.19150326,0.0002,2]
[362690372,1748398251474,-433.86397208,0.0002,2]
[362690374,1748398251485,-855.4,0.0002,2]
[362690376,1748398251494,-500.52268806,0.0002,2]
[362690377,1748398251503,-430.0,0.0002,2]
[362690380,1748398251513,-430.0,0.0002,2]
[362690382,1748398251522,-430.0,0.0002,2]
[362690384,1748398251532,-378.22004617,0.00020072,2]
[362690386,1748398251541,-430.0,0.00020127,2]
[362690388,1748398251551,-430.0,0.00020127,2]
[362690390,1748398251562,-454.11899105,0.00020127,2]
[362690392,1748398251573,-430.0,0.00020127,2]
[362690394,1748398251582,-1259.42,0.00020127,2]
[362690396,1748398251593,-248.52078,0.00020187,2]
[362690398,1748398251604,-504.30195548,0.00020234,2]
[362690400,1748398251614,-378.22004617,0.00020245,2]
[362690402,1748398251624,-430.0,0.00020273,2]
[362690404,1748398251635,-485.16,0.00020273,2]
[362690406,1748398251645,-1886.1,0.00020273,2]
[362690408,1748398251655,-430.0,0.00020273,2]
[362690410,1748398251666,-2355.4,0.00020273,2]
[362690412,1748398251676,-430.0,0.00020273,2]
[362690414,1748398251685,-449.51,0.00020273,2]
[362690416,1748398251695,-440.16611733,0.00020273,2]
[362690419,1748398251705,-430.0,0.00020273,2]
[362690421,1748398251715,-231.3319894,0.00020273,2]
[362690423,1748398251728,-430.0,0.00020273,2]
[362690425,1748398251737,-430.0,0.00020273,2]
[362690427,1748398251747,-855.4,0.00020273,2]
[362690429,1748398251757,-430.0,0.00020273,2]
[362690431,1748398251766,-430.0,0.00020273,2]
[362690433,1748398251776,-430.0,0.00020273,2]
[362690435,1748398251786,-212.66609673,0.00020273,2]
[362690437,1748398251796,-423.24161968,0.00020274,2]
[362690439,1748398251806,-364.58333331,0.00020274,2]
[362690440,1748398251817,-160.0,0.00020274,2]
[362690443,1748398251828,-229.229959,0.00020274,2]
[362690444,1748398251839,-160.0,0.00020274,2]
[362690446,1748398251849,-430.0,0.00020401,2]
[362690448,1748398251858,-430.0,0.00020401,2]
[362690450,1748398251870,-430.0,0.00020401,2]
[362690452,1748398251884,-1259.42,0.00020401,2]
[362690453,1748398251894,-378.22004617,0.00020417,3]
[362690454,1748398251903,-207.4,0.00020537,2]
[362690455,1748398251913,-430.0,0.00020547,2]
[362690456,1748398251922,-1886.1,0.00020547,2]
[362690457,1748398251932,-430.0,0.00020547,2]
[362690458,1748398251943,-2355.4,0.00020547,2]
[362690459,1748398251952,-430.0,0.00020547,2]
[362690460,1748398251962,-449.51,0.00020547,2]
[362690461,1748398251972,-430.0,0.00020547,2]
[362690462,1748398251982,-430.0,0.00020547,2]
[362690463,1748398251992,-532.07902045,0.00020547,2]
[362690464,1748398252003,-855.4,0.00020547,2]
[362690465,1748398252012,-430.0,0.00020547,2]
[362690466,1748398252021,-249.70499064,0.00020547,2]
[362690467,1748398252032,-430.0,0.00020547,2]
[362690468,1748398252041,-378.22004617,0.0002059,3]
[362690469,1748398252051,-153.420894,0.0002061,2]
[362690470,1748398252060,-157.295363,0.0002061,2]
[362690471,1748398252071,-465.88,0.00020675,2]
[362690472,1748398252081,-430.0,0.00020675,2]
[362690474,1748398252091,-430.0,0.00020675,2]
[362690476,1748398252101,-1259.42,0.00020675,2]
[362690478,1748398252111,-300.79657783,0.00020741,2]
[362690480,1748398252121,-378.22004617,0.00020762,3]
[362690482,1748398252132,-430.0,0.00020821,2]
[362690484,1748398252141,-1886.1,0.00020821,2]
[362690486,1748398252151,-430.0,0.00020821,2]
[362690488,1748398252160,-2355.4,0.00020821,2]
[362690490,1748398252170,-430.0,0.00020821,2]
[362690492,1748398252179,-449.51,0.00020821,2]
[362690494,1748398252189,-430.0,0.00020821,2]
[362690497,1748398252199,-430.0,0.00020821,2]
[362690498,1748398252209,-855.4,0.00020821,2]
[362690501,1748398252219,-430.0,0.00020821,2]
[362690503,1748398252228,-378.22004617,0.00020934,4]
[362690505,1748398252238,-228.764,0.00020945,2]
[362690507,1748398252248,-336.18256153,0.00020949,2]
[362690509,1748398252258,-430.0,0.00020949,2]
[362690511,1748398252268,-1259.42,0.00020949,2]
[362690513,1748398252277,-1019.0,0.00021,2]
[362690515,1748398252287,-775.46,0.00021077,2]
[362690517,1748398252296,-430.0,0.00021095,2]
[362690519,1748398252306,-1886.1,0.00021095,2]
[362690521,1748398252315,-430.0,0.00021095,2]
[362690523,1748398252325,-2355.4,0.00021095,2]
[362690525,1748398252334,-430.0,0.00021095,2]
[362690527,1748398252343,-449.51,0.00021095,2]
[362690529,1748398252352,-487.10005875,0.00021095,2]
[362690531,1748398252362,-430.0,0.00021095,2]
[362690533,1748398252372,-855.4,0.00021095,2]
[362690535,1748398252381,-430.0,0.00021095,2]
[362690537,1748398252391,-378.22004617,0.00021107,4]
[362690539,1748398252401,-600.0,0.00021164,2]
[362690541,1748398252411,-430.0,0.00021223,2]
[362690543,1748398252420,-1259.42,0.00021223,2]
[362690545,1748398252431,-378.22004617,0.00021279,5]
[362690546,1748398252441,-450.94076883,0.00021368,2]
[362690549,1748398252451,-430.0,0.00021368,2]
[362690550,1748398252462,-430.0,0.00021368,2]
[362690553,1748398252472,-430.0,0.00021369,2]
[362690555,1748398252482,-1886.1,0.00021369,2]
[362690557,1748398252492,-417.04,0.00021369,2]
[362690558,1748398252502,-2355.4,0.00021369,2]
[362690561,1748398252513,-430.0,0.00021369,2]
[362690562,1748398252522,-449.51,0.00021369,2]
[362690564,1748398252532,-430.0,0.00021369,2]
[362690566,1748398252542,-855.4,0.00021369,2]
[362690568,1748398252552,-430.0,0.00021369,2]
[362690570,1748398252562,-255.3944419,0.00021389,2]
[362690585,1748398252695,-430.0,0.00019452,2]
[362690587,1748398252705,-248.90751358,0.00021389,2]
[362690589,1748398252714,-378.22004617,0.00021452,5]
[362690591,1748398252723,-430.0,0.00021496,2]
[362690593,1748398252733,-956.95831936,0.00021496,2]
[362690596,1748398252763,-463.2177405,0.00019726,2]
[362690598,1748398252773,-430.0,0.00020821,2]
[362690600,1748398252783,-302.46168064,0.00021496,2]
[362690602,1748398252793,-501.54907328,0.0002155,2]
[362690604,1748398252803,-188.11057458,0.0002155,2]
[362690606,1748398252813,-507.69145078,0.0002155,2]
[362690608,1748398252823,-300.79657783,0.00021573,2]
[362690610,1748398252832,-378.22004617,0.00021624,5]
[362690612,1748398252841,-430.0,0.00021642,2]
[362690614,1748398252851,-430.0,0.00021643,2]
[362690616,1748398252861,-300.63682184,0.00021643,2]
[362690618,1748398252877,-1424.35250129,0.00021643,2]
[362690621,1748398252891,-161.11067687,0.00021643,2]
[362690623,1748398252901,-2355.4,0.00021643,2]
[362690625,1748398252911,-430.0,0.00021643,2]
[362690627,1748398252921,-449.51,0.00021643,2]
[362690629,1748398252931,-314.72981259,0.00021643,2]
[362690631,1748398252940,-855.4,0.00021643,2]
[362690633,1748398252950,-430.0,0.00021643,2]
[362690635,1748398252960,-430.0,0.0002177,2]
[362690637,1748398252970,-1259.42,0.0002177,2]
[362690639,1748398252980,-378.22004617,0.00021797,6]
[362690641,1748398252990,-215.0738,0.00021906,2]
[362690643,1748398253000,-430.0,0.00021916,2]
[362690645,1748398253010,-911.536473,0.00021916,2]
[362690647,1748398253020,-911.536473,0.00021916,2]
[362690649,1748398253030,-430.0,0.00021917,2]
[362690651,1748398253039,-500.0,0.00021917,2]
[362690653,1748398253049,-1886.1,0.00021917,2]
[362690655,1748398253059,-2355.4,0.00021917,2]
[362690657,1748398253069,-430.0,0.00021917,2]
[362690659,1748398253079,-449.51,0.00021917,2]
[362690661,1748398253088,-855.4,0.00021917,2]
[362690663,1748398253098,-430.0,0.00021917,2]
[362690665,1748398253108,-378.22004617,0.00021969,6]
[362690667,1748398253117,-2058.28,0.00022,2]
[362690669,1748398253127,-157.0,0.00022,2]
[362690671,1748398253137,-430.0,0.00022044,2]
[362690673,1748398253146,-1259.42,0.00022044,2]
[362690675,1748398253156,-1550.92,0.00022081,2]
[362690677,1748398253165,-378.22004617,0.00022141,6]
[362690679,1748398253176,-430.0,0.0002219,2]
[362690681,1748398253186,-430.0,0.00022191,2]
[362690683,1748398253196,-1886.1,0.00022191,2]
[362690685,1748398253205,-2355.4,0.00022191,2]
[362690687,1748398253214,-430.0,0.00022191,2]
[362690689,1748398253223,-449.51,0.00022191,2]
[362690691,1748398253234,-855.4,0.00022191,2]
[362690694,1748398253244,-430.0,0.00022191,2]
[362690696,1748398253253,-600.0,0.0002226,2]
[362690698,1748398253263,-757.88514196,0.00022284,3]
[362692327,1748398272253,-234.69284195,0.00019178,2]
[362692545,1748398274351,-139.72955585,0.00019178,2]
[362692546,1748398274377,-35.00560605,0.00019178,2]
[362692634,1748398276298,-162.949857,0.00019178,2]
[362692838,1748398278299,-217.85701788,0.00019178,2]
[362693042,1748398280265,-22.56358703,0.00019178,2]
[362693045,1748398280288,-137.74293197,0.00019178,2]
[362698151,1748398566109,233.610272,0.00013699,2]
[362698153,1748398658128,6286.82419693,0.00024,120]
[362698164,1748398763098,-1776.72082088,0.00018116,2]
[362698165,1748398763120,-176.60042961,0.00018219,2]
[362698166,1748398763142,-227.640084,0.00018299,2]
[362698167,1748398763164,-300.0,0.00019176,2]
[362698168,1748398763187,-300.0,0.00019176,2]
[362698169,1748398763208,-500.0,0.00019177,2]
[362698170,1748398763233,-500.0,0.00019177,2]
[362698171,1748398763256,-500.0,0.00019177,2]
[362698172,1748398763278,-409.03866551,0.00019177,2]
[362698203,1748399159045,2000.0,0.00014051,2]
[362698204,1748399233209,1000.0,0.00021918,30]
[362698205,1748399240116,-313.94113085,0.00018062,2]
[362698312,1748399304116,4805.96589918,0.00013,2]
[362700450,1748399359181,-177.38913363,0.00017881,2]
[362700451,1748399359207,-21.46398051,0.00018244,2]
[362701644,1748399434979,-196.82727249,0.00018244,2]
[362701645,1748399437514,-110.4494747,0.00018244,2]
[362701646,1748399437524,-150.39828895,0.00019078,2]
[362701647,1748399437534,-363.36394962,0.00019078,2]
[362701648,1748399437544,-516.50193891,0.00019173,2]
[362701649,1748399437554,-500.84992361,0.00019173,2]
[362701650,1748399437565,-500.0,0.00019173,2]
[362701651,1748399437575,-90.96133449,0.00019177,2]
[362701652,1748399437585,-555.77654339,0.00019177,2]
[362701653,1748399437595,-203.0260781,0.00019177,2]
[362701654,1748399437605,-500.0,0.00019177,2]
[362701655,1748399437615,-500.0,0.00019177,2]
[362701656,1748399437630,-500.0,0.00019177,2]
[362701657,1748399437639,-500.0,0.00019177,2]
[362701658,1748399437650,-269.19536329,0.00019177,2]
[362701659,1748399437660,-505.49284804,0.00019177,2]
[362701660,1748399437669,-500.0,0.00019177,2]
[362701661,1748399437679,-616.7584402,0.00019177,2]
[362701662,1748399437689,-320.85367797,0.00019177,2]
[362701663,1748399437698,-500.0,0.00019177,2]
[362701664,1748399437708,-500.0,0.00019177,2]
[362701665,1748399437719,-500.0,0.00019177,2]
[362701666,1748399437729,-500.0,0.00019177,2]
[362701667,1748399437738,-500.0,0.00019177,2]
[362701668,1748399437749,-219.23280684,0.00019177,2]
[362701669,1748399437760,-500.0,0.00019177,2]
[362701670,1748399437769,-301.15005058,0.00019177,2]
[362701671,1748399437781,-500.0,0.00019177,2]
[362701672,1748399437790,-500.0,0.00019177,2]
[362701674,1748399437800,-500.0,0.00019177,2]
[362701676,1748399437810,-500.0,0.00019177,2]
[362701677,1748399437819,-500.0,0.00019177,2]
[362701678,1748399437829,-500.0,0.00019177,2]
[362701679,1748399437838,-375.61084878,0.00019177,2]
[362701681,1748399437848,-430.0,0.00019178,2]
[362701682,1748399437859,-430.0,0.00019178,2]
[362701683,1748399437870,-204.76083194,0.00019178,2]
[362701684,1748399437879,-430.0,0.00019178,2]
[362701685,1748399437889,-193.03729986,0.00019178,2]
[362701686,1748399437899,-430.0,0.00019178,2]
[362701687,1748399437908,-430.0,0.00019178,2]
[362701689,1748399437918,-430.0,0.00019178,2]
[362701691,1748399437928,-430.0,0.00019178,2]
[362701693,1748399437938,-472.47293346,0.00019178,2]
[362701695,1748399437947,-430.0,0.00019178,2]
[362701697,1748399437957,-430.0,0.00019178,2]
[362701699,1748399437967,-500.0,0.00019178,2]
[362701702,1748399437977,-500.0,0.00019178,2]
[362701704,1748399437986,-500.0,0.00019178,2]
[362701706,1748399437996,-500.0,0.00019178,2]
[362701708,1748399438005,-500.0,0.00019178,2]
[362701711,1748399438015,-500.0,0.00019178,2]
[362701714,1748399438024,-500.0,0.00019178,2]
[362701717,1748399438034,-500.0,0.00019178,2]
[362701718,1748399438043,-500.0,0.00019178,2]
[362701719,1748399438052,-546.7454595,0.00019178,2]
[362701720,1748399438062,-430.0,0.00019178,2]
[362701722,1748399438072,-430.0,0.00019178,2]
[362701724,1748399438081,-430.0,0.00019178,2]
[362701726,1748399438090,-430.0,0.00019178,2]
[362701728,1748399438100,-177.03695198,0.00019178,2]
[362701730,1748399438109,-430.0,0.00019178,2]
[362701732,1748399438120,-450.0,0.00019178,2]
[362701734,1748399438129,-430.0,0.00019178,2]
[362701735,1748399438138,-430.0,0.00019178,2]
[362701736,1748399438151,-430.0,0.00019178,2]
[362701737,1748399438161,-430.0,0.00019178,2]
[362701738,1748399438170,-315.88518223,0.00019178,2]
[362701739,1748399438179,-430.0,0.00019178,2]
[362701740,1748399438189,-543.28674829,0.00019178,2]
[362701741,1748399438198,-430.0,0.00019178,2]
[362701742,1748399438208,-430.0,0.00019178,2]
[362701744,1748399438217,-430.0,0.00019178,2]
[362701745,1748399438227,-430.0,0.00019178,2]
[362701748,1748399438236,-504.79754555,0.00019178,2]
[362701749,1748399438245,-430.0,0.00019178,2]
[362701751,1748399438256,-430.0,0.00019178,2]
[362701754,1748399438266,-430.0,0.00019178,2]
[362701755,1748399438276,-406.96988158,0.00019178,2]
[362701757,1748399438285,-435.00441192,0.00019178,2]
[362701759,1748399438294,-430.0,0.00019178,2]
[362701761,1748399438305,-430.0,0.00019178,2]
[362701763,1748399438314,-430.0,0.00019178,2]
[362701765,1748399438324,-430.0,0.00019178,2]
[362701767,1748399438335,-430.0,0.00019178,2]
[362701769,1748399438344,-326.54517136,0.00019178,2]
[362701772,1748399438359,-103.45482864,0.00019178,2]
[362701774,1748399438370,-430.0,0.00019178,2]
[362701776,1748399438379,-430.0,0.00019178,2]
[362701778,1748399438389,-430.0,0.00019178,2]
[362701780,1748399438397,-430.0,0.00019178,2]
[362701782,1748399438407,-430.0,0.00019178,2]
[362701784,1748399438416,-435.3263105,0.00019178,2]
[362701786,1748399438426,-430.0,0.00019178,2]
[362701788,1748399438435,-355.52230863,0.00019178,2]
[362701790,1748399438444,-534.00272095,0.00019178,2]
[362701792,1748399438455,-434.24247581,0.00019178,2]
[362701793,1748399438464,-430.0,0.00019178,2]
[362701795,1748399438473,-430.0,0.00019178,2]
[362701797,1748399438482,-430.0,0.00019178,2]
[362701799,1748399438491,-430.0,0.00019178,2]
[362701801,1748399438503,-430.0,0.00019178,2]
[362701803,1748399438512,-430.0,0.00019178,2]
[362701805,1748399438522,-182.94323326,0.00019178,2]
[362701808,1748399438532,-430.0,0.00019178,2]
[362701810,1748399438541,-430.0,0.00019178,2]
[362701812,1748399438551,-430.0,0.00019178,2]
[362701814,1748399438560,-430.0,0.00019178,2]
[362701816,1748399438569,-430.0,0.00019178,2]
[362701817,1748399438579,-430.0,0.00019178,2]
[362701820,1748399438589,-430.0,0.00019178,2]
[362701822,1748399438598,-430.0,0.00019178,2]
[362701824,1748399438607,-430.0,0.00019178,2]
[362701826,1748399438616,-430.0,0.00019178,2]
[362701827,1748399438627,-501.75686868,0.00019178,2]
[362701829,1748399438637,-110.84763182,0.00019178,2]
[362701832,1748399438650,-303.36201085,0.00019178,2]
[362701834,1748399438659,-296.6379894,0.00019178,2]
[362701836,1748399438670,-133.3620106,0.00019178,2]
[362701838,1748399438680,-470.0,0.00019178,2]
[362701840,1748399438690,-430.0,0.00019178,2]
[362701842,1748399438700,-430.0,0.00019178,2]
[362701844,1748399438709,-430.0,0.00019178,2]
[362701846,1748399438719,-430.0,0.00019178,2]
[362701848,1748399438729,-430.0,0.00019178,2]
[362701850,1748399438739,-430.0,0.00019178,2]
[362701852,1748399438748,-251.32585512,0.00019178,2]
[362701854,1748399438761,-178.67414488,0.00019178,2]
[362701856,1748399438771,-282.74835512,0.00019178,2]
[362701859,1748399438784,-147.25164488,0.00019178,2]
[362701861,1748399438795,-430.0,0.00019178,2]
[362701863,1748399438805,-430.0,0.00019178,2]
[362701865,1748399438815,-369.55818577,0.00019178,2]
[362701867,1748399438829,-60.44181423,0.00019178,2]
[362701869,1748399438839,-430.0,0.00019178,2]
[362701871,1748399438849,-430.0,0.00019178,2]
[362701873,1748399438859,-430.0,0.00019178,2]
[362701875,1748399438869,-430.0,0.00019178,2]
[362701876,1748399438884,-430.0,0.00019178,2]
[362701878,1748399438894,-430.0,0.00019178,2]
[362701880,1748399438904,-430.0,0.00019178,2]
[362701882,1748399438913,-430.0,0.00019178,2]
[362701884,1748399438924,-430.0,0.00019178,2]
[362701886,1748399438933,-210.54,0.00019178,2]
[362701888,1748399438943,-430.0,0.00019178,2]
[362701890,1748399438953,-430.0,0.00019178,2]
[362701892,1748399438963,-178.08370065,0.00019178,2]
[362701894,1748399438977,-251.91629935,0.00019178,2]
[362701896,1748399438988,-149.08370065,0.00019178,2]
[362701899,1748399439007,-280.91629935,0.00019178,2]
[362701901,1748399439018,-430.0,0.00019178,2]
[362701903,1748399439028,-430.0,0.00019178,2]
[362701905,1748399439038,-394.50334601,0.00019178,2]
[362701908,1748399439054,-35.49665399,0.00019178,2]
[362701910,1748399439063,-430.0,0.00019178,2]
[362701912,1748399439073,-430.0,0.00019178,2]
[362701914,1748399439082,-430.0,0.00019178,2]
[362701916,1748399439092,-537.1497684,0.00019178,2]
[362701918,1748399439101,-430.0,0.00019178,2]
[362701920,1748399439110,-430.0,0.00019178,2]
[362701922,1748399439120,-430.0,0.00019178,2]
[362701924,1748399439135,-438.59036024,0.00019178,2]
[362701925,1748399439146,-430.0,0.00019178,2]
[362701927,1748399439155,-430.0,0.00019178,2]
[362701929,1748399439165,-430.0,0.00019178,2]
[362701931,1748399439175,-430.0,0.00019178,2]
[362701933,1748399439185,-430.0,0.00019178,2]
[362701935,1748399439195,-430.0,0.00019178,2]
[362701937,1748399439204,-430.0,0.00019178,2]
[362701939,1748399439213,-430.0,0.00019178,2]
[362701941,1748399439223,-430.0,0.00019178,2]
[362701943,1748399439233,-430.0,0.00019178,2]
[362701945,1748399439243,-430.0,0.00019178,2]
[362701947,1748399439253,-430.0,0.00019178,2]
[362701949,1748399439265,-430.0,0.00019178,2]
[362701951,1748399439275,-430.0,0.00019178,2]
[362701953,1748399439285,-430.0,0.00019178,2]
[362701955,1748399439296,-430.0,0.00019178,2]
[362701957,1748399439306,-430.0,0.00019178,2]
[362701959,1748399439316,-430.0,0.00019178,2]
[362701961,1748399439326,-511.84167235,0.00019178,2]